{"text_format":"1","workbook":"xlsx","n_sheets":1,"sheets":["FORMULAR SV"],"not_rendered":{"charts":0,"images":0,"macros":0,"external_links":0,"defined_names":2,"comments":0,"pivot_tables":0},"unopened":[],"bounds":{"document_bytes":16777216,"sheet_cells":100000,"rows_first":2000,"rows_last":500,"rows_between":2000,"halvings":0,"cell_chars":16384,"cell_head_chars":4096},"cells_cut":0,"cells_raw":0,"read":"whole","date_system":"1900"}

{"sheet":"FORMULAR SV","index":0,"n_rows":185,"n_cols":6,"rows_kept":185,"cut":false,"hidden":false,"merged":[]}
[null,"Stavební práce- 1.část","Soupis výkonů."]
[null,"Mladá Boleslav"]
[]
["Číslo pozice","Popis výkonu.","Měrná jednotka","Množství","Jednotková cena","Cena"]
[null,"REKAPITULACE"]
[null,"Vyměření staveniště",null,null,null,{"$f":"F23","v":0}]
[null,"Stavebí práce - východ a sever",null,null,null,{"$f":"F80","v":0}]
[null,"Jímka na dešťovou vodu 7,5 m3.",null,null,null,{"$f":"F90","v":0}]
[null,"Jímka na vodu 1,5 m3.",null,null,null,{"$f":"F100","v":0}]
[null,"Šachta pro vzduchotechniku.",null,null,null,{"$f":"F111","v":0}]
[null,"Rozvod vody na pozemku.",null,null,null,{"$f":"F120","v":0}]
[null,"Kanalizace dešťová a splašková.",null,null,null,{"$f":"F144","v":0}]
[null,"Elektromontáže.",null,null,null,{"$f":"F151","v":0}]
[null,"Rezervní položky",null,null,null,{"$f":"F181","v":0}]
[null,"CELKEM SOUPIS VÝKONŮ",null,null,null,{"$f":"SUM(F6:F14)","v":0}]
[]
[null,"Vyměření staveniště"]
[1,"vyměření dvora,dvojgaráže,vstupu,základů,kanalizace a vodovodu","kpl.",1,null,{"$f":"D18*E18","v":0}]
[2,"Osazení laviček a vyznačení základů","kpl.",1,null,{"$f":"D19*E19","v":0}]
[3,"Sejmutí ornice-provedeno","m3",0,null,0]
[4,"Zemní práce jsou zahrnuty v jednotlivých kapitolách",null,null,null,0]
[null,null,null,null,null,0]
[null,"CELKEM ",null,null,null,{"$f":"SUM(F18:F22)","v":0}]
[]
[null,"Stavební práce - východ a sever"]
[null,"Stavební práce pro bazén"]
[1,"Odkopávky v nezapažené hornině 3 do 100m3","m3",32,null,{"$f":"D27*E27","v":0}]
[2,"Vodorovné přemístění výkopku z hor. 1-3 včetně naložení a uložení na skládku zhotovitele","m3",32,null,0]
[3,"Základové pasy z betonu tř. C 25/30","m3",2.5,null,0]
[4,"Základová zeď tl. 200mm ze ztraceného bednění ","m2",26.6,null,0]
[5,"Základová zeď-výplň tvárnic betonem tř. C 25/30","m3",2.9,null,0]
[6,"Základová zeď-ocelová výztuž z hřebínkové oceli (8)","kg",189,null,0]
[7,"Násyp pro zpevnění podkladu v tl.100mm ze štěrkopísku","m3",3,null,0]
[8,"Dodávka a položení geotextilie 300g/m2","m2",60,null,0]
[9,"Pěnosklo nebo keramzit (např. Refaglass) hutnící poměr 1,3:1,Tlouštka po zhutnění 250mm","m3",13,null,0]
[10,"Dodávka a položení geotextilie 500g/m2","m2",30,null,0]
[11,"Mazanina tl. 100mm, beton tř. C 25/30","m3",3,null,0]
[12,"Provedení izolace proti zemní vlhkosti pásy např. SKLOBIT 40 MINERAL (přitavením,plocha vodorovná)","m2",37,null,0]
[13,"Základová deska ŽB tř. C25/30, výztuž KARI 10x10, prům. 6,tl.desky 150mm","m3",4.5,null,0]
[14,"Tekutá lepenka např. DenBit DISPER DN, 2x nátěr,26,6m2x1,5kg/m","kg",40,null,0]
[15,"Penetrace-nátěr, PENETRAL ALP, 0,3-0,4 kg/m2","kg",19.600000000000001,null,0]
[16,"Styrodur 180mm, izolace základové zdi","m3",4.5,null,0]
[17,"Drenážní potrubí DN 100 včetně obalu z geotextilie např.GEOsack","m",30,null,0]
[18,"Drenážní potrubí - T kus, DN 100","ks",3,null,0]
[19,"Drenážní potrubí - koleno 90°, DN 100","ks",3,null,0]
[20,"Nopová folie, při pokládce přesah 200mm","m2",30,null,0]
[21,"Výsivka pro zásyp","m3",3,null,0]
[null,"Zemní práce"]
[22,"Odkopávky v nezapažené hornině 3 do 100m3","m3",95,null,0]
[23,"Vodorovné přemístění výkopku z hor. 1-3 včetně naložení a uložení na skládku zhotovitele","m3",95,null,0]
[null,"Zhotovení plochy ze zámkové dlažby (pochůzná)"]
[24,"Dodávka zámkové dlažby tl.80mm-výrobce BEST, typ BEST BEATON ROVNÝ, barva přírodní včetně pokládky","m2",32,null,0]
[25,"Konstrukce plochy ,kladecí vrstva tl. 30mm (2-3mm)geotextilie 300g/m2, drcené kamenivo tl. 150mm (8-16mm),vyrovnání podkladu štěrkopískem","m2",32,null,0]
[null,"Zhotovení plochy ze zámkové dlažby.(pojízdné do 3,5t)"]
[26," Dodávka zámková dlažby tl. 80 mm, výrobce BEST, typ BEST BEATON ROVNÝ, barva přírodní včetně pokládky","m2",78,null,0]
[27,"Konstrukce plochy ,kladecí vrstva tl. 30mm (2-3mm)geotextilie 300g/m2, nosná vrstva tl.150mm (0-32mm),roznášecí vrstva tl.200mm (32-63mm),vyrovnání podkladu štěrkopískem","m2",78,null,0]
[null,"Základ pod vrata"]
[28,"Bednění pro základy sloupků vrat","m2",4,null,0]
[29,"Základy sloupků vrat,beton tř. C 25/30","m3",0.5,null,0]
[30,"Základová zeď tl. 200mm ze ztraceného bednění ","m2",2.5,null,0]
[31,"Základová zeď, výplň ztraceného bednění beton tř. C 25/30","m3",0.3,null,0]
[32,"Ocelová výztuž z hřebínkové oceli (8mm) pro zeď a základy sloupků","kg",26,null,0]
[null,"Opěrná zeď - severovýchod"]
[33,"Základová zeď tl. 200mm ze ztraceného bednění ","m2",19,null,0]
[34,"Základová zeď, výplň ztraceného bednění beton tř. C 25/30","m3",2.1,null,0]
[35,"Ocelová výztuž z hřebínkové oceli (8mm) pro zeď","kg",134,null,0]
[36,"Tekutá lepenka např. DenBIit DISPER DN, 2x nátěr 1,5kg/m2","kg",28.5,null,0]
[37,"Nopová folie, při pokládce přesah 200mm","m2",23,null,0]
[38,"Zásyp - výsivka","m3",3.8,null,0]
[null,"Betonové patky prozastřešení vstupu"]
[39,"Bednění pro 3ks patek zastřešení","m2",5,null,0]
[40,"Beton tř, C 25/30 ,3ks patky zastřešení","m3",0.6,null,0]
[41,"Ocelová výztuž z hřebínkové oceli (8mm)","kg",12,null,0]
[null,"Základové pasy z betonu "]
[42,"Základové pasy z betonu tř. C 25/30","m3",9.6,null,0]
[43,"Základová zeď tl. 400mm ze ztraceného bednění","m2",22,null,0]
[44,"Ocelová výztuž z hřebínkové oceli základové zdi (10mm)","kg",45,null,0]
[45,"Základová zeď, beton pro výplň ztraceného bednění tř. C 25/30","m3",6.1,null,0]
[]
[null,"CELKEM ",null,null,null,{"$f":"SUM(F27:F79)","v":0}]
[]
[null,"Jímka na dešťovou vodu 7,5 m3"]
[1,"Zemní práce jsou započítány v pozici 22 a 23","m3",0,null,{"$f":"D83*E83","v":0}]
[2,"Dodávku jímky na dešťovou vodu 7,5m3,váha 322kg, zajišťuje investor (3340x2310x1125mm)","ks",1,null,{"$f":"D84*E84","v":0}]
[3,"Násyp pro zpevnění podkladu 100mm ze štěrkopísku včetně vyrovnání","m3",1,null,{"$f":"D85*E85","v":0}]
[4,"Usazení jímky na štěrkopískovou vrstvu (váha 322kg)","kpl.",1,null,{"$f":"D86*E86","v":0}]
[5,"Obsyp jímky písko-štěrkovou směsí (2-8mm) nebo jiným vhodným matriálem za současného napouštění vodou.Obsyp provádět po vrstvách cca 200mm s upěchováním. Voda, hadice s uzávěrem je v místě montáže jímky.","kpl.",1,null,{"$f":"D87*E87","v":0}]
[null,"Pozn.Napojení jímky je zahrnuto v části kanalizace."]
[]
[null,"CELKEM ",null,null,null,{"$f":"SUM(F83:F89)","v":0}]
[]
[null,"Jímka na vodu 1,5m3"]
[1,"zemní práce jsou započítány v pozici 22 a 23","m3",0,null,{"$f":"D93*E93","v":0}]
[2,"Dodávku jímky na vodu 1,5m3, váha 85 kg, zajišťuje investor ","ks",1,null,{"$f":"D94*E94","v":0}]
[3,"Násyp pro zpevnění podkladu v tl. 100mm ze štěrkopísku včetně vyrovnání ","m3",0.3,null,{"$f":"D95*E95","v":0}]
[4,"Usazení jímky na štěrkovískovou vrstvu. (85kg)","kpl.",1,null,0]
[5,"Obsyp jímky písko-štěrkovou směsí (2-8mm) nebo jiným vhodným matriálem za současného napouštění vodou .Obsyp provádět po vrstvách cca 200mm s upěchováním.Voda, hadice s uzávěrem je v místě montáže jímky.","kpl.",1,null,0]
[null,"Pozn. Napojení jímky je zahrnuto v části kanalizace"]
[null,null,null,null,null,{"$f":"D99*E99","v":0}]
[null,"CELKEM",null,null,null,{"$f":"SUM(F93:F99)","v":0}]
[]
[null,"Šachta pro vzduchotechniku."]
[1,"Hloubení šachet v horninách 3 objemu do 100m3","m3",8,null,{"$f":"D103*E103","v":0}]
[2,"Vodorovné přemístění výkopku z hor. 1-3 včetně naložení a uložení na skládku zhotovitele ","m3",8,null,{"$f":"D104*E104","v":0}]
[3,"Násyp pro zpevnění podkladu v tl.50 ze stěrkopísku včetně vyrovnání.","m3",0.4,null,0]
[4,"Základová deska ze  ŽB tř. C 25/30,výztuž KARI 15x15x6,tl. 150mm","m3",0.6,null,0]
[5,"Základová zeď tl. 200mm ze ztraceného bednění","m2",9.1999999999999993,null,0]
[6,"Ocelová výztuž základové zdi z hřebínkové oceli (10mm)","kg",90,null,0]
[7,"Beton pro výplň ztraceného bednění  tř. C 25/30","m3",1,null,0]
[null,null,null,null,null,{"$f":"D110*E110","v":0}]
[null,"CELKEM ",null,null,null,{"$f":"SUM(F103:F110)","v":0}]
[]
[null,"Rozvody vody na pozemku"]
[1,"Vodovod z trub PE 100 D 32x3 bez tvarovek","m",75,null,{"$f":"D114*E114","v":0}]
[2,"Vybourání otvoru ve stěně ze ztraceného bednění tl.200mm , otvor 150 x 800mm pro potrubí PE 100 D 32x3","kpl.",1,null,0]
[null,"Pozn.",null,null,null,{"$f":"D116*E116","v":0}]
[null,"Potrubí bude uloženo ve společné rýze pro kanalizaci.",null,null,null,{"$f":"D117*E117","v":0}]
[null,"Potrubí je určeno pro rozvod užitkové (dešťové) vody.",null,null,null,{"$f":"D118*E118","v":0}]
[null,null,null,null,null,{"$f":"D119*E119","v":0}]
[null,"CELKEM ",null,null,null,{"$f":"SUM(F114:F119)","v":0}]
[]
[null,"Kanalizace dešťová a splašková."]
[1,"Hloubení rýh do šířky 60cm, průměrné hloubky 90cm v hornině 3 do 100m3","m3",24,null,{"$f":"D123*E123","v":0}]
[2,"Lože pod potrubí z kameniva těženého 0-4mm","m3",2,null,0]
[3,"Obsyp potrubí bez prohození sypaninou","m3",6,null,0]
[4,"Vodorovné přemístění výkopku z hor. 1-3 včetně naložení a uložení na skládku zhotovitele","m3",8,null,0]
[5,"Potrubí z trub PVC-systém KG, tř. SN4, DN125","m",43.5,null,0]
[6,"Potrubí z trub PVC-systém KG, tř. SN4, DN110","m",10,null,0]
[7,"Koleno kanalizační KGB 125/45° PVC","ks",26,null,0]
[8,"Odbočka kanalizační KGEA 125/125/45°PVC","ks",12,null,0]
[9,"Odbočka kanalizační KGEA 125/125/90°PVC","ks",2,null,0]
[10,"Koleno kanalizační  KGB 125/87,5°PVC","ks",6,null,0]
[11,"Redukce na potrubí z 50/125","ks",1,null,0]
[12,"Redukce na potrubí ze 110/125","ks",1,null,0]
[13,"Koleno kanalizační KGB 110/45°PVC","ks",2,null,0]
[14,"Zkouška těsnosti kanalizace vodou do DN 125mm","m",49.5,null,0]
[15,"Montáž PVC šachtičky 300x300m (umístění-bet. deska)","kpl.",1,null,0]
[null,"Pozn. Šachtičku dodá investor."]
[16,"Drenážní potrubí DN100 včetně obalu z geotextilie např. GEOsack","m",57,null,0]
[17,"Drenážní potrubí-koleno 90,DN 100","ks",4,null,0]
[18,"Drenážní potrubí - T kus,DN 100","ks",5,null,0]
[19,"Drenážní potrubí -odbočka 100/100/45°","ks",2,null,0]
[]
[null,"CELKEM ",null,null,null,{"$f":"SUM(F123:F143)","v":0}]
[]
[null,"Elektromontáže"]
[1,"Vedení uzemňovací v zemi a základových pasech FeZn 30x3mm ( svitek 2x25m)","m",50,null,{"$f":"D147*E147","v":0}]
[2,"Svorka hromosvodová pro spojení 2ks zemnících pásků 30x4 (4 šrouby)","ks",2,null,{"$f":"D148*E148","v":0}]
[3,"Gumoasfalt pro nátěr spojů","l",1,null,{"$f":"D149*E149","v":0}]
[]
[null,"CELKEM ",null,null,null,{"$f":"SUM(F147:F150)","v":0}]
[]
[null,"Rezervní položky"]
[1,"HZS-práce pomocné","hod.",1,null,{"$f":"D154*E154","v":0}]
[2,"HZS-práce středně kvalifikované","hod.",1,null,0]
[3,"HZS-práce kvalifikované","hod.",1,null,0]
[4,"Úprava pláně -hornina 1-4, se zhutněním","m2",1,null,0]
[5,"Základová zeď tl. 200mm z tvárnic ztraceného bednění","m2",1,null,0]
[6,"Základová zeď tl. 250mm z tvárnic ztraceného bednění","m2",1,null,0]
[7,"Základová zeď tl. 300mm z tvárnic ztraceného bednění","m2",1,null,0]
[8,"Základová zeď tl. 400mm z tvárnic ztraceného bednění","m2",1,null,0]
[9,"Základová zeď tl. 500mm z tvárnic ztraceného bednění","m2",1,null,0]
[10,"Ruční  výkop rýhy do šíře 60cm a průměrné hloubky  100cm","m",1,null,0]
[11,"100 cm.","m",1,null,0]
[12,"Demontáž provizorniho oploceni z  2 m vysokého pletiva, ocelových sloupků ukotvených pomocí vrutů.(klíč na vyšroubování vrutů zapůjčí investor. Součástí oplocení jsou vrata z pletiva v ocelovém rámu a sloupky jsou ukotveny ve vrutech.","m3",1,null,0]
[13,"Montáž  provizorního oplocení z demontovaného matriálu z položky č. 8 po dokončení Stavebních prací - 1.část","m",1,null,0]
[14,"Zásyp jam, rýh, šachet se zhutněním ","m",1,null,0]
[15,"Dodávka a osazení záhonového obrubníku do lože z betonu tř. C 20/30 s opěrou.","m",1,null,0]
[16,"Osazení chodníkového obrubníku z betonu stojatý s opěrkou do lože z betonu tř. C 25/30","m",1,null,0]
[17,"Dodávka a osazení palisády-přírodní výška nad zemí 600mm do lože z betonu tř.C 25/30","m",1,null,0]
[null,"Poznámka:"]
[]
[null,"Zařízení staveniště."]
[null,"Na stavbě je k dispozici rozvodnice  1x 380V, 2x 220V včetně osazeného proudového chrániče a přípojka pitné vody  (hadice ukončena kohoutem, délka hadice obsáhne celé staveniště)"]
[null,"Pro zaměstnance stavebního dodavatele je na stavbě k dispozici chemické WC."]
[]
[null,"K soupisu výkonů."]
[null,"Fakturace prací bude provedena podle skutečně provedených prací. (vícepráce, méněpráce)"]
[null,"Platba za provedené práce bude investorem zajištěna do 5 pracovních dnů po schválení účtovaných prací."]
[null,"Do jednotkových cen musí být zahrnuty všechny náklady spojené s provedením díla. (drobný matriál, pomocné práce, doprava atd.)"]
[null,"Rezervní položky lze použít po odsouhlasení investorem.",null,null,null,{"$f":"SUM(F154:F180)","v":0}]
[]
[null,"CELKEM ",null,null,null,{"$f":"F23+F80+F90+F100+F111+F120+F144+#REF!+F151+F181","v":{"$error":"#REF!"}}]
[]
[null,"CELKEM SOUPIS VÝKONŮ"]